[Event "*** Titled Tuesday 3|2 Blitz"]
[Site "Chess.com"]
[Date "2015.02.24"]
[Round "6"]
[White "Gevorg_Harutjunyan"]
[Black "AkshatChandra"]
[Result "0-1"]
[WhiteElo "2510"]
[BlackElo "2488"]
[TimeControl "180+2"]
[EndTime "12:21:32 PST"]
[Termination "AkshatChandra won by resignation"]

1. e4 {[%clk 0:02:59.1]} 1... c5 {[%clk 0:02:57.4]} 2. Nc3 {[%clk 0:03:00.4]}
2... Nc6 {[%clk 0:02:58.1]} 3. Bb5 {[%clk 0:02:59.1]} 3... Na5 {[%clk
0:02:59.2]} 4. Be2 {[%clk 0:02:55.9]} 4... e6 {[%clk 0:02:58.6]} 5. f4 {[%clk
0:02:56.6]} 5... a6 {[%clk 0:02:54.2]} 6. Nf3 {[%clk 0:02:56.4]} 6... d5 {[%clk
0:02:48.5]} 7. d4 {[%clk 0:02:56.2]} 7... dxe4 {[%clk 0:02:44.2]} 8. Nxe4 {[%clk
0:02:57]} 8... cxd4 {[%clk 0:02:45.6]} 9. Qxd4 {[%clk 0:02:56.2]} 9... Qxd4
{[%clk 0:02:45.3]} 10. Nxd4 {[%clk 0:02:58.1]} 10... Bd7 {[%clk 0:02:45.1]} 11.
Be3 {[%clk 0:02:55.5]} 11... Be7 {[%clk 0:02:24.3]} 12. O-O-O {[%clk 0:02:44]}
12... Nf6 {[%clk 0:02:24.6]} 13. Ng5 {[%clk 0:02:32.7]} 13... Nd5 {[%clk
0:02:09.3]} 14. Bd2 {[%clk 0:02:33.9]} 14... Nc6 {[%clk 0:02:10.5]} 15. Nxc6
{[%clk 0:02:20.3]} 15... Bxc6 {[%clk 0:02:12.4]} 16. Bf3 {[%clk 0:02:20.9]}
16... Rc8 {[%clk 0:02:08.4]} 17. Kb1 {[%clk 0:02:17.3]} 17... O-O {[%clk
0:02:08.2]} 18. Rhe1 {[%clk 0:01:55]} 18... Rfd8 {[%clk 0:01:51.9]} 19. f5
{[%clk 0:01:48.7]} 19... Bxg5 {[%clk 0:01:37.7]} 20. Bxg5 {[%clk 0:01:49]} 20...
f6 {[%clk 0:01:39.3]} 21. Bd2 {[%clk 0:01:34.8]} 21... exf5 {[%clk 0:01:26.9]}
22. Ba5 {[%clk 0:01:35.2]} 22... b6 {[%clk 0:01:17.9]} 23. Bxb6 {[%clk
0:01:36.1]} 23... Nxb6 {[%clk 0:01:13.4]} 24. Rxd8+ {[%clk 0:01:36.8]} 24...
Rxd8 {[%clk 0:01:15.3]} 25. Bxc6 {[%clk 0:01:38.2]} 25... Nc4 {[%clk 0:01:03.1]}
26. a4 {[%clk 0:01:10.9]} 26... Ne5 {[%clk 0:00:57.4]} 27. Bb7 {[%clk
0:01:10.9]} 27... a5 {[%clk 0:00:56.3]} 28. b4 {[%clk 0:01:07.6]} 28... axb4
{[%clk 0:00:49.8]} 29. a5 {[%clk 0:01:08.5]} 29... Nc4 {[%clk 0:00:32.2]} 30. a6
{[%clk 0:01:03.1]} 30... Kf7 {[%clk 0:00:16.5]} 31. a7 {[%clk 0:00:55.4]} 31...
Nb6 {[%clk 0:00:17.8]} 32. Re3 {[%clk 0:00:53.2]} 32... Rd1+ {[%clk 0:00:11.8]}
33. Ka2 {[%clk 0:00:52.5]} 33... Rd7 {[%clk 0:00:10.4]} 34. a8=Q {[%clk
0:00:19.6]} 34... Nxa8 {[%clk 0:00:11.6]} 35. Bxa8 {[%clk 0:00:20.8]} 35... Ra7+
{[%clk 0:00:13.3]} 36. Kb3 {[%clk 0:00:22.4]} 36... Rxa8 {[%clk 0:00:15]} 37.
Kxb4 {[%clk 0:00:24.3]} 37... Rb8+ {[%clk 0:00:15.9]} 38. Kc4 {[%clk 0:00:21.1]}
38... Rc8+ {[%clk 0:00:16.5]} 39. Kb3 {[%clk 0:00:22.3]} 39... Rb8+ {[%clk
0:00:17.2]} 40. Ka2 {[%clk 0:00:23.7]} 40... Ra8+ {[%clk 0:00:14.3]} 41. Kb2
{[%clk 0:00:24.8]} 41... Rb8+ {[%clk 0:00:15.4]} 42. Kc1 {[%clk 0:00:26.3]}
42... Rb5 {[%clk 0:00:16.4]} 43. c3 {[%clk 0:00:25.6]} 43... Re5 {[%clk
0:00:17.5]} 44. Rd3 {[%clk 0:00:19.6]} 44... Ke6 {[%clk 0:00:16.2]} 45. Kd2
{[%clk 0:00:19.4]} 45... f4 {[%clk 0:00:14]} 46. c4 {[%clk 0:00:20.3]} 46... g5
{[%clk 0:00:13.5]} 47. Rd8 {[%clk 0:00:19.6]} 47... Kf5 {[%clk 0:00:12.9]} 48.
Kd3 {[%clk 0:00:18.9]} 48... Re3+ {[%clk 0:00:13.7]} 49. Kd2 {[%clk 0:00:19.9]}
49... Re5 {[%clk 0:00:14.1]} 50. Kd3 {[%clk 0:00:20.7]} 50... h5 {[%clk
0:00:15.3]} 51. Rh8 {[%clk 0:00:18.6]} 51... h4 {[%clk 0:00:15.6]} 52. Kd4
{[%clk 0:00:16.3]} 52... Re2 {[%clk 0:00:16]} 53. c5 {[%clk 0:00:18]} 53... Rxg2
{[%clk 0:00:16.7]} 54. c6 {[%clk 0:00:19.7]} 54... Rc2 {[%clk 0:00:16.1]} 55.
Kd5 {[%clk 0:00:20.1]} 55... Rd2+ {[%clk 0:00:16]} 56. Kc5 {[%clk 0:00:20.1]}
56... f3 {[%clk 0:00:17.6]} 57. Ra8 {[%clk 0:00:19.7]} 57... Rc2+ {[%clk
0:00:17.2]} 58. Kd6 {[%clk 0:00:20]} 58... f2 {[%clk 0:00:18.8]} 59. Ra1 {[%clk
0:00:20.7]} 59... g4 {[%clk 0:00:20.2]} 60. c7 {[%clk 0:00:22.2]} 60... Rxc7
{[%clk 0:00:20.7]} 61. Kxc7 {[%clk 0:00:23]} 61... g3 {[%clk 0:00:22.4]} 62.
hxg3 {[%clk 0:00:24.9]} 62... hxg3 {[%clk 0:00:24.3]} 63. Rf1 {[%clk 0:00:26.2]}
63... Kg4 {[%clk 0:00:25.2]} 64. Kd6 {[%clk 0:00:27.8]} 64... f5 {[%clk
0:00:21.6]} 65. Ke5 {[%clk 0:00:28.7]} 65... g2 {[%clk 0:00:20.3]} 66. Rxf2
{[%clk 0:00:30.2]} 66... g1=Q {[%clk 0:00:21.7]} 67. Rf4+ {[%clk 0:00:31.9]}
67... Kg3 {[%clk 0:00:21.5]} 68. Rxf5 {[%clk 0:00:33.6]} 68... Qe3+ {[%clk
0:00:22.6]} 69. Kf6 {[%clk 0:00:35.2]} 69... Kg4 {[%clk 0:00:23.2]} 70. Re5
{[%clk 0:00:36.3]} 70... Qd4 {[%clk 0:00:23.7]} 71. Ke6 {[%clk 0:00:37.5]} 71...
Kf4 {[%clk 0:00:24.2]} 72. Rd5 {[%clk 0:00:38.2]} 72... Qc4 {[%clk 0:00:23.4]}
73. Kd6 {[%clk 0:00:39.4]} 73... Ke4 {[%clk 0:00:24.2]} 74. Re5+ {[%clk
0:00:40.7]} 74... Kd4 {[%clk 0:00:24.8]} 75. Rf5 {[%clk 0:00:40.4]} 75... Qa6+
{[%clk 0:00:25.2]} 76. Ke7 {[%clk 0:00:41.7]} 76... Qb7+ {[%clk 0:00:24.8]} 77.
Ke6 {[%clk 0:00:42.4]} 77... Qc6+ {[%clk 0:00:23.3]} 78. Ke7 {[%clk 0:00:42.7]}
78... Ke4 {[%clk 0:00:22.5]} 79. Rf6 {[%clk 0:00:43.3]} 79... Qc7+ {[%clk
0:00:20.3]} 80. Ke6 {[%clk 0:00:44.7]} 80... Qc4+ {[%clk 0:00:21.9]} 81. Kd6
{[%clk 0:00:45]} 81... Qd4+ {[%clk 0:00:22.6]} 82. Ke6 {[%clk 0:00:46.4]} 82...
Qd5+ {[%clk 0:00:24]} 83. Ke7 {[%clk 0:00:48]} 83... Ke5 {[%clk 0:00:24.9]} 84.
Rf8 {[%clk 0:00:47.9]} 84... Qb7+ {[%clk 0:00:25.6]} 85. Kd8 {[%clk 0:00:49.3]}
85... Ke6 {[%clk 0:00:21.3]} 86. Re8+ {[%clk 0:00:50.3]} 86... Kd6 {[%clk
0:00:18.5]} 0-1

[Event "*** Titled Tuesday 3|2 Blitz"]
[Site "Chess.com"]
[Date "2015.02.24"]
[Round "6"]
[White "MattyDPerrine"]
[Black "AlexanderL"]
[Result "0-1"]
[WhiteElo "2055"]
[BlackElo "2511"]
[TimeControl "180+2"]
[EndTime "12:21:33 PST"]
[Termination "AlexanderL won by resignation"]

1. d4 {[%clk 0:02:43.5]} 1... e6 {[%clk 0:02:57.3]} 2. c4 {[%clk 0:02:43.4]}
2... b6 {[%clk 0:02:58.1]} 3. Nc3 {[%clk 0:02:44.3]} 3... Bb7 {[%clk 0:02:58.3]}
4. Qc2 {[%clk 0:02:43.9]} 4... f5 {[%clk 0:02:57.3]} 5. Nf3 {[%clk 0:02:44.2]}
5... Nf6 {[%clk 0:02:58.4]} 6. g3 {[%clk 0:02:44.8]} 6... g6 {[%clk 0:02:58.1]}
7. Bg2 {[%clk 0:02:45.7]} 7... Bg7 {[%clk 0:02:59.3]} 8. O-O {[%clk 0:02:47.1]}
8... O-O {[%clk 0:03:00.3]} 9. Rd1 {[%clk 0:02:46.6]} 9... Qe7 {[%clk
0:02:49.2]} 10. b3 {[%clk 0:01:55.7]} 10... d6 {[%clk 0:02:46.8]} 11. Ba3 {[%clk
0:01:53.7]} 11... c5 {[%clk 0:02:43.8]} 12. Rac1 {[%clk 0:01:50.8]} 12... Nc6
{[%clk 0:02:38]} 13. d5 {[%clk 0:01:27.1]} 13... exd5 {[%clk 0:02:37.2]} 14.
Nxd5 {[%clk 0:01:27.8]} 14... Nxd5 {[%clk 0:02:37.5]} 15. cxd5 {[%clk
0:01:28.9]} 15... Ne5 {[%clk 0:02:36.3]} 16. Bb2 {[%clk 0:01:24.7]} 16... Rae8
{[%clk 0:02:35.1]} 17. e3 {[%clk 0:01:15.6]} 17... Ng4 {[%clk 0:02:23.1]} 18.
Bxg7 {[%clk 0:01:09.7]} 18... Qxg7 {[%clk 0:02:23.8]} 19. Ng5 {[%clk 0:01:00.6]}
19... Qh6 {[%clk 0:02:24.8]} 20. h4 {[%clk 0:00:37.1]} 20... Bc8 {[%clk
0:02:25]} 21. Ne6 {[%clk 0:00:32.1]} 21... Rf6 {[%clk 0:02:26.1]} 22. Bf3 {[%clk
0:00:11.2]} 22... Ne5 {[%clk 0:02:21.5]} 23. Bg2 {[%clk 0:00:12.3]} 23... Nf7
{[%clk 0:02:21.1]} 24. Qd2 {[%clk 0:00:13]} 24... Bxe6 {[%clk 0:02:19.6]} 25.
dxe6 {[%clk 0:00:14.9]} 25... Rfxe6 {[%clk 0:02:20.9]} 26. Bd5 {[%clk
0:00:16.8]} 26... Rf6 {[%clk 0:02:21.5]} 27. Bc6 {[%clk 0:00:16.2]} 27... Re7
{[%clk 0:02:22]} 28. Bd5 {[%clk 0:00:14.6]} 28... Kg7 {[%clk 0:02:22]} 29. f4
{[%clk 0:00:14.4]} 29... Qh5 {[%clk 0:02:20.5]} 30. Rf1 {[%clk 0:00:12.8]} 30...
Nh6 {[%clk 0:02:16.4]} 31. Bf3 {[%clk 0:00:13.8]} 31... Ng4 {[%clk 0:02:17.6]}
32. Rce1 {[%clk 0:00:14.9]} 32... Rfe6 {[%clk 0:02:13.7]} 33. Re2 {[%clk
0:00:11.9]} 33... Qh6 {[%clk 0:01:58.4]} 34. Bxg4 {[%clk 0:00:12.4]} 34... fxg4
{[%clk 0:02:00.3]} 35. Rfe1 {[%clk 0:00:12]} 35... Kf7 {[%clk 0:01:54.4]} 36. e4
{[%clk 0:00:12.8]} 36... Qg7 {[%clk 0:01:55.6]} 37. Kg2 {[%clk 0:00:13.5]} 37...
Qd4 {[%clk 0:01:55.5]} 38. Qxd4 {[%clk 0:00:09.3]} 38... cxd4 {[%clk 0:01:57.4]}
39. e5 {[%clk 0:00:11.2]} 39... d3 {[%clk 0:01:54.5]} 40. Rd2 {[%clk 0:00:11.1]}
40... dxe5 {[%clk 0:01:55.5]} 41. fxe5 {[%clk 0:00:07.6]} 41... Rxe5 {[%clk
0:01:55.9]} 42. Rf1+ {[%clk 0:00:09.3]} 42... Rf5 {[%clk 0:01:47.9]} 43. Rxf5+
{[%clk 0:00:10.2]} 43... gxf5 {[%clk 0:01:48.8]} 44. Rxd3 {[%clk 0:00:12.1]}
44... Re2+ {[%clk 0:01:49.5]} 45. Kf1 {[%clk 0:00:13.7]} 45... Rxa2 {[%clk
0:01:51.1]} 46. Rd7+ {[%clk 0:00:15.2]} 46... Kf6 {[%clk 0:01:45.9]} 47. Rxh7
{[%clk 0:00:13.7]} 47... Ra3 {[%clk 0:01:47.3]} 48. Kf2 {[%clk 0:00:11.6]} 48...
a5 {[%clk 0:01:48.6]} 49. Rc7 {[%clk 0:00:10.1]} 49... Rxb3 {[%clk 0:01:49.4]}
50. Rc6+ {[%clk 0:00:12]} 50... Ke5 {[%clk 0:01:49]} 51. h5 {[%clk 0:00:13.4]}
51... f4 {[%clk 0:01:41.3]} 52. gxf4+ {[%clk 0:00:13.3]} 52... Kxf4 {[%clk
0:01:41.9]} 53. h6 {[%clk 0:00:12.6]} 53... Rb2+ {[%clk 0:01:21.9]} 54. Kf1
{[%clk 0:00:09.9]} 54... b5 {[%clk 0:01:07.7]} 55. Rc5 {[%clk 0:00:04.9]} 55...
Rb1+ {[%clk 0:00:16.4]} 56. Kg2 {[%clk 0:00:06.3]} 56... Rb2+ {[%clk 0:00:17.9]}
57. Kg1 {[%clk 0:00:07.7]} 57... b4 {[%clk 0:00:19.4]} 58. Rxa5 {[%clk
0:00:06.4]} 58... Kg3 {[%clk 0:00:17.6]} 59. Kf1 {[%clk 0:00:07.8]} 59... Rh2
{[%clk 0:00:17.5]} 60. Rb5 {[%clk 0:00:07.9]} 60... Rh1+ {[%clk 0:00:18.5]} 61.
Ke2 {[%clk 0:00:09.2]} 61... Rxh6 {[%clk 0:00:19.6]} 62. Rxb4 {[%clk 0:00:10.6]}
62... Rf6 {[%clk 0:00:20.8]} 63. Re4 {[%clk 0:00:10.7]} 63... Kh3 {[%clk
0:00:21.8]} 64. Re8 {[%clk 0:00:12]} 64... g3 {[%clk 0:00:22.9]} 65. Rh8+ {[%clk
0:00:13.3]} 65... Kg2 {[%clk 0:00:24.3]} 66. Rg8 {[%clk 0:00:15]} 66... Re6+
{[%clk 0:00:25.5]} 67. Kd2 {[%clk 0:00:16]} 67... Kf2 {[%clk 0:00:27.3]} 68.
Rf8+ {[%clk 0:00:17.3]} 68... Kg1 {[%clk 0:00:28.7]} 69. Rg8 {[%clk 0:00:19.2]}
69... g2 {[%clk 0:00:30.2]} 70. Rg5 {[%clk 0:00:20.3]} 70... Re4 {[%clk
0:00:30.7]} 71. Kd3 {[%clk 0:00:21.1]} 71... Re8 {[%clk 0:00:24]} 72. Rg6 {[%clk
0:00:16.9]} 72... Re5 {[%clk 0:00:23]} 73. Kd4 {[%clk 0:00:17.5]} 73... Re1
{[%clk 0:00:23.4]} 74. Kd3 {[%clk 0:00:18.2]} 74... Kf2 {[%clk 0:00:22.6]} 75.
Rf6+ {[%clk 0:00:19.1]} 75... Kg1 {[%clk 0:00:23.8]} 76. Rg6 {[%clk 0:00:20.1]}
76... Re5 {[%clk 0:00:19.4]} 77. Kd4 {[%clk 0:00:19.8]} 77... Rh5 {[%clk
0:00:19.5]} 78. Ke3 {[%clk 0:00:15.8]} 78... Kh2 {[%clk 0:00:20.3]} 79. Kf3
{[%clk 0:00:15.5]} 79... g1=Q {[%clk 0:00:19.9]} 0-1

[Event "*** Titled Tuesday 3|2 Blitz"]
[Site "Chess.com"]
[Date "2015.02.24"]
[Round "7"]
[White "Danirod"]
[Black "kesarev"]
[Result "1/2-1/2"]
[WhiteElo "2349"]
[BlackElo "2259"]
[TimeControl "180+2"]
[EndTime "12:26:58 PST"]
[Termination "Game drawn by repetition"]

1. e4 {[%clk 0:03:00]} 1... g6 {[%clk 0:02:59.3]} 2. d4 {[%clk 0:03:00.8]} 2...
Bg7 {[%clk 0:03:00.9]} 3. Nc3 {[%clk 0:03:02]} 3... c5 {[%clk 0:03:02.4]} 4.
dxc5 {[%clk 0:03:03.2]} 4... Bxc3+ {[%clk 0:03:02.6]} 5. bxc3 {[%clk 0:03:04.2]}
5... Qa5 {[%clk 0:03:04.1]} 6. Qd4 {[%clk 0:03:01.7]} 6... Nf6 {[%clk
0:03:04.5]} 7. Qb4 {[%clk 0:03:03]} 7... Nc6 {[%clk 0:03:05.4]} 8. Qxa5 {[%clk
0:03:03.8]} 8... Nxa5 {[%clk 0:03:06.5]} 9. Bd3 {[%clk 0:03:03.8]} 9... b6
{[%clk 0:03:06.8]} 10. cxb6 {[%clk 0:03:03.9]} 10... axb6 {[%clk 0:03:07.5]} 11.
Ne2 {[%clk 0:03:00.9]} 11... d6 {[%clk 0:03:04.1]} 12. Bg5 {[%clk 0:02:59]}
12... Nd7 {[%clk 0:03:02.4]} 13. Nd4 {[%clk 0:02:57.6]} 13... Nc5 {[%clk
0:03:00.4]} 14. Kd2 {[%clk 0:02:56.7]} 14... f6 {[%clk 0:02:57.6]} 15. Be3
{[%clk 0:02:56.7]} 15... Ba6 {[%clk 0:02:53.9]} 16. f3 {[%clk 0:02:47.3]} 16...
Kd7 {[%clk 0:02:54.1]} 17. Rhb1 {[%clk 0:02:47.7]} 17... Rhb8 {[%clk 0:02:54.1]}
18. Nb3 {[%clk 0:02:48]} 18... Nc4+ {[%clk 0:02:35.6]} 19. Bxc4 {[%clk
0:02:45.9]} 19... Bxc4 {[%clk 0:02:37.5]} 20. Nxc5+ {[%clk 0:02:37.3]} 20...
bxc5 {[%clk 0:02:39.4]} 21. Rxb8 {[%clk 0:02:37.7]} 21... Rxb8 {[%clk
0:02:40.2]} 22. a4 {[%clk 0:02:39]} 22... Kc6 {[%clk 0:02:40.4]} 23. a5 {[%clk
0:02:40.2]} 23... Kb7 {[%clk 0:02:37.5]} 24. Rb1+ {[%clk 0:02:32.5]} 24... Ka7
{[%clk 0:02:38]} 25. Rxb8 {[%clk 0:02:33.8]} 25... Kxb8 {[%clk 0:02:39.6]} 26.
f4 {[%clk 0:02:35.7]} 26... Kb7 {[%clk 0:02:37.8]} 27. e5 {[%clk 0:02:37.1]}
27... Ka6 {[%clk 0:02:36.4]} 28. exd6 {[%clk 0:02:35.9]} 28... exd6 {[%clk
0:02:37.4]} 29. f5 {[%clk 0:02:30.3]} 29... gxf5 {[%clk 0:02:37.7]} 30. Bf4
{[%clk 0:02:31.6]} 30... Kxa5 {[%clk 0:02:30.6]} 31. Bxd6 {[%clk 0:02:32.6]}
31... Kb5 {[%clk 0:02:32.1]} 32. Be7 {[%clk 0:02:33.8]} 32... Bd5 {[%clk
0:02:31.6]} 33. g3 {[%clk 0:02:34.8]} 33... Kc4 {[%clk 0:02:24.9]} 34. Bxf6
{[%clk 0:02:35.8]} 34... Be4 {[%clk 0:02:24.4]} 35. Be5 {[%clk 0:02:36.1]} 35...
Kd5 {[%clk 0:02:25.4]} 36. Bg7 {[%clk 0:02:37.2]} 36... Ke6 {[%clk 0:02:24.7]}
37. c4 {[%clk 0:02:32.1]} 37... Kd6 {[%clk 0:02:25.5]} 38. Bf8+ {[%clk
0:02:29.8]} 38... Kc6 {[%clk 0:02:26.3]} 39. Be7 {[%clk 0:02:30.6]} 39... Bg2
{[%clk 0:02:25.4]} 40. Ke3 {[%clk 0:02:26.8]} 40... Bf1 {[%clk 0:02:26.3]} 41.
Kf4 {[%clk 0:02:27.8]} 41... Bxc4 {[%clk 0:02:26.3]} 42. Kxf5 {[%clk 0:02:29.2]}
42... Be2 {[%clk 0:02:25.1]} 43. g4 {[%clk 0:02:25]} 43... c4 {[%clk 0:02:25.1]}
44. c3 {[%clk 0:02:25.1]} 44... Kd7 {[%clk 0:02:25.9]} 45. Bf6 {[%clk
0:02:25.8]} 45... Ke8 {[%clk 0:02:26.5]} 46. h4 {[%clk 0:02:27]} 46... Kf7
{[%clk 0:02:27.4]} 47. Bd4 {[%clk 0:02:26.7]} 47... Bd3+ {[%clk 0:02:27.8]} 48.
Kg5 {[%clk 0:02:27.6]} 48... Bc2 {[%clk 0:02:28.4]} 49. Kh6 {[%clk 0:02:26.7]}
49... Bb1 {[%clk 0:02:29.6]} 50. h5 {[%clk 0:02:27.2]} 50... Bc2 {[%clk
0:02:28]} 51. g5 {[%clk 0:02:28.6]} 51... Bb1 {[%clk 0:02:29.1]} 52. Be5 {[%clk
0:02:28.9]} 52... Bc2 {[%clk 0:02:30.3]} 53. Bd4 {[%clk 0:02:30.5]} 53... Bb1
{[%clk 0:02:31.5]} 54. Bf6 {[%clk 0:02:31.7]} 54... Bc2 {[%clk 0:02:32.7]} 55.
Bd4 {[%clk 0:02:32.9]} 55... Bb1 {[%clk 0:02:34.6]} 56. Be5 {[%clk 0:02:34.2]}
56... Bc2 {[%clk 0:02:35.8]} 57. Bd4 {[%clk 0:02:35.8]} 57... Bb1 {[%clk
0:02:37.7]} 1/2-1/2

[Event "*** Titled Tuesday 3|2 Blitz"]
[Site "Chess.com"]
[Date "2015.02.24"]
[Round "7"]
[White "exoticprincess"]
[Black "GeorgMeier"]
[Result "1-0"]
[WhiteElo "2827"]
[BlackElo "2666"]
[TimeControl "180+2"]
[EndTime "12:28:30 PST"]
[Termination "exoticprincess won by resignation"]

1. d4 {[%clk 0:02:51.2]} 1... Nf6 {[%clk 0:02:57.3]} 2. Nc3 {[%clk 0:02:51.4]}
2... d5 {[%clk 0:02:57.6]} 3. Bf4 {[%clk 0:02:52.5]} 3... a6 {[%clk 0:02:57.8]}
4. Qd2 {[%clk 0:02:51.5]} 4... e6 {[%clk 0:02:55.1]} 5. f3 {[%clk 0:02:51.2]}
5... b5 {[%clk 0:02:54.6]} 6. a3 {[%clk 0:02:51.7]} 6... b4 {[%clk 0:02:49.5]}
7. axb4 {[%clk 0:02:52.2]} 7... Bxb4 {[%clk 0:02:51.4]} 8. e3 {[%clk 0:02:49]}
8... Nbd7 {[%clk 0:02:44.7]} 9. Bd3 {[%clk 0:02:46.5]} 9... O-O {[%clk
0:02:33.2]} 10. Nge2 {[%clk 0:02:46.3]} 10... c5 {[%clk 0:02:29.3]} 11. b3
{[%clk 0:02:46.5]} 11... Bb7 {[%clk 0:02:26.1]} 12. O-O {[%clk 0:02:44.6]} 12...
Rc8 {[%clk 0:02:26.8]} 13. Bd6 {[%clk 0:02:41]} 13... Re8 {[%clk 0:02:25.3]} 14.
Bxa6 {[%clk 0:02:40.6]} 14... Qb6 {[%clk 0:02:17.8]} 15. Bxb7 {[%clk 0:02:40.9]}
15... Qxb7 {[%clk 0:02:19.1]} 16. dxc5 {[%clk 0:02:36.6]} 16... Nxc5 {[%clk
0:02:16.2]} 17. Qd4 {[%clk 0:02:37.6]} 17... Nfd7 {[%clk 0:01:50.6]} 18. e4
{[%clk 0:02:28.3]} 18... Bxc3 {[%clk 0:01:34.4]} 19. Nxc3 {[%clk 0:02:27.1]}
19... Qc6 {[%clk 0:01:35.4]} 20. Bg3 {[%clk 0:02:22.8]} 20... Nxb3 {[%clk
0:00:51.2]} 21. cxb3 {[%clk 0:02:23.3]} 21... Qxc3 {[%clk 0:00:52.2]} 22. Qxc3
{[%clk 0:02:25]} 22... Rxc3 {[%clk 0:00:53.6]} 23. exd5 {[%clk 0:02:26.5]} 23...
exd5 {[%clk 0:00:54.7]} 24. b4 {[%clk 0:02:27.9]} 24... Nb6 {[%clk 0:00:42.3]}
25. b5 {[%clk 0:02:23.9]} 25... d4 {[%clk 0:00:28.3]} 26. Bf2 {[%clk 0:02:24.7]}
26... Rd8 {[%clk 0:00:15.3]} 27. Ra6 {[%clk 0:02:24.7]} 27... Nc4 {[%clk
0:00:14.6]} 28. Bxd4 {[%clk 0:02:22.2]} 28... Rb3 {[%clk 0:00:15.8]} 29. Rc1
{[%clk 0:02:19.1]} 29... Nd2 {[%clk 0:00:05.3]} 30. Rd6 {[%clk 0:02:14.7]} 30...
Re8 {[%clk 0:00:05.8]} 31. b6 {[%clk 0:02:13.3]} 31... h5 {[%clk 0:00:06.1]} 32.
Rd7 {[%clk 0:02:10]} 32... Re2 {[%clk 0:00:06.8]} 33. b7 {[%clk 0:02:07.8]}
33... Kh7 {[%clk 0:00:06.8]} 34. Rxf7 {[%clk 0:02:07.4]} 34... Kg6 {[%clk
0:00:08.1]} 35. Rxg7+ {[%clk 0:02:08.3]} 35... Kf5 {[%clk 0:00:09.7]} 36. h4
{[%clk 0:02:04.6]} 1-0

[Event "*** Titled Tuesday 3|2 Blitz"]
[Site "Chess.com"]
[Date "2015.02.24"]
[Round "7"]
[White "FytNob"]
[Black "DoctorMove"]
[Result "1-0"]
[WhiteElo "1870"]
[BlackElo "1760"]
[TimeControl "180+2"]
[EndTime "12:28:43 PST"]
[Termination "FytNob won by resignation"]

1. d4 {[%clk 0:03:00]} 1... d5 {[%clk 0:02:58.5]} 2. c4 {[%clk 0:02:58.2]} 2...
e6 {[%clk 0:02:59.4]} 3. Nc3 {[%clk 0:02:57]} 3... Nf6 {[%clk 0:03:00]} 4. Nf3
{[%clk 0:02:58.2]} 4... Be7 {[%clk 0:03:00.4]} 5. Bf4 {[%clk 0:02:57.7]} 5...
O-O {[%clk 0:02:59.5]} 6. e3 {[%clk 0:02:59]} 6... c5 {[%clk 0:03:00.4]} 7. dxc5
{[%clk 0:02:59.5]} 7... Bxc5 {[%clk 0:02:57.1]} 8. cxd5 {[%clk 0:03:00.9]} 8...
exd5 {[%clk 0:02:57.1]} 9. Bd3 {[%clk 0:02:58.1]} 9... Nc6 {[%clk 0:02:56.9]}
10. Ne5 {[%clk 0:02:57.6]} 10... d4 {[%clk 0:02:49.8]} 11. Nxc6 {[%clk
0:02:57.9]} 11... bxc6 {[%clk 0:02:49.6]} 12. Na4 {[%clk 0:02:54]} 12... Qa5+
{[%clk 0:02:40]} 13. Ke2 {[%clk 0:02:54]} 13... dxe3 {[%clk 0:02:27.6]} 14. Nxc5
{[%clk 0:02:53.5]} 14... exf2 {[%clk 0:02:25.4]} 15. Qc2 {[%clk 0:02:42.6]}
15... Ng4 {[%clk 0:01:58]} 16. h3 {[%clk 0:02:39.7]} 16... Re8+ {[%clk
0:01:57.5]} 17. Kf3 {[%clk 0:02:39.1]} 17... Ne5+ {[%clk 0:01:50.6]} 18. Kxf2
{[%clk 0:02:35.2]} 18... Nxd3+ {[%clk 0:01:19.4]} 19. Nxd3 {[%clk 0:02:35.8]}
19... Qb6+ {[%clk 0:01:20.3]} 20. Nc5 {[%clk 0:02:34.3]} 20... Ba6 {[%clk
0:01:09.6]} 21. Rhe1 {[%clk 0:02:33]} 21... Bd3 {[%clk 0:00:59.5]} 22. Qc3
{[%clk 0:02:19.4]} 22... Red8 {[%clk 0:00:43.3]} 23. Kg1 {[%clk 0:02:06.5]}
23... Rd5 {[%clk 0:00:37.4]} 24. Rac1 {[%clk 0:02:05.4]} 24... Rad8 {[%clk
0:00:24.4]} 25. Kh1 {[%clk 0:02:04.9]} 25... Bg6 {[%clk 0:00:21.9]} 26. b4
{[%clk 0:01:50.8]} 26... a5 {[%clk 0:00:21.8]} 27. a3 {[%clk 0:01:51.6]} 27...
axb4 {[%clk 0:00:23.4]} 28. axb4 {[%clk 0:01:53.5]} 28... Qb5 {[%clk 0:00:14.4]}
29. Qc4 {[%clk 0:01:36.2]} 29... Qxc4 {[%clk 0:00:09.9]} 30. Rxc4 {[%clk
0:01:37.1]} 30... h6 {[%clk 0:00:07.6]} 31. Nb7 {[%clk 0:01:33.6]} 31... Rb8
{[%clk 0:00:04.5]} 32. Na5 {[%clk 0:01:33.8]} 32... c5 {[%clk 0:00:04.4]} 33.
Rxc5 {[%clk 0:01:34.6]} 33... Rd4 {[%clk 0:00:04.9]} 34. Bxb8 {[%clk 0:01:32.1]}
1-0

[Event "*** Titled Tuesday 3|2 Blitz"]
[Site "Chess.com"]
[Date "2015.02.24"]
[Round "7"]
[White "EltajSafarli"]
[Black "pedromartinez91"]
[Result "1-0"]
[WhiteElo "2629"]
[BlackElo "2145"]
[TimeControl "180+2"]
[EndTime "12:28:55 PST"]
[Termination "EltajSafarli won by resignation"]

1. e4 {[%clk 0:03:00]} 1... e6 {[%clk 0:02:59.2]} 2. d4 {[%clk 0:03:00.5]} 2...
d5 {[%clk 0:03:00.4]} 3. Nd2 {[%clk 0:03:02.4]} 3... Nf6 {[%clk 0:03:01.6]} 4.
Bd3 {[%clk 0:03:02.4]} 4... c5 {[%clk 0:02:52.8]} 5. c3 {[%clk 0:03:03.3]} 5...
Nc6 {[%clk 0:02:53.4]} 6. Ngf3 {[%clk 0:03:03.5]} 6... cxd4 {[%clk 0:02:54.2]}
7. cxd4 {[%clk 0:03:05.4]} 7... Be7 {[%clk 0:02:50.1]} 8. O-O {[%clk 0:03:04.1]}
8... Qb6 {[%clk 0:02:49.3]} 9. e5 {[%clk 0:02:58.1]} 9... Nd7 {[%clk 0:02:50.1]}
10. Nb3 {[%clk 0:02:55.1]} 10... a5 {[%clk 0:02:50.6]} 11. a4 {[%clk 0:02:50.2]}
11... Ndb8 {[%clk 0:02:51.5]} 12. h4 {[%clk 0:02:44.2]} 12... h6 {[%clk
0:02:52]} 13. Be3 {[%clk 0:02:41.5]} 13... Nb4 {[%clk 0:02:53.2]} 14. Bb1 {[%clk
0:02:40.7]} 14... Bd7 {[%clk 0:02:44.6]} 15. Nc5 {[%clk 0:02:37.5]} 15... N8a6
{[%clk 0:02:40.8]} 16. Nxd7 {[%clk 0:02:32.2]} 16... Kxd7 {[%clk 0:02:41.5]} 17.
Nd2 {[%clk 0:02:32.9]} 17... Ke8 {[%clk 0:02:37.4]} 18. Ra3 {[%clk 0:02:28.1]}
18... Nc6 {[%clk 0:02:37.5]} 19. Rb3 {[%clk 0:02:27.8]} 19... Nab4 {[%clk
0:02:38.4]} 20. Qg4 {[%clk 0:02:24.1]} 20... Kf8 {[%clk 0:02:34.9]} 21. f4
{[%clk 0:02:10.7]} 21... h5 {[%clk 0:02:35.8]} 22. Qg3 {[%clk 0:02:11.5]} 22...
g6 {[%clk 0:02:32.8]} 23. Nf3 {[%clk 0:02:12.5]} 23... Rg8 {[%clk 0:02:26.2]}
24. f5 {[%clk 0:01:57.5]} 24... exf5 {[%clk 0:02:23.2]} 25. Bxf5 {[%clk
0:01:58.4]} 25... Ke8 {[%clk 0:02:16.9]} 26. e6 {[%clk 0:01:57.1]} 26... Nd8
{[%clk 0:02:10.3]} 27. exf7+ {[%clk 0:01:49.1]} 27... Nxf7 {[%clk 0:02:11.2]}
28. Bh3 {[%clk 0:01:50.3]} 28... Ra6 {[%clk 0:01:35.2]} 29. Bd2 {[%clk
0:01:40.8]} 29... Qd6 {[%clk 0:01:16.5]} 30. Ne5 {[%clk 0:01:32.5]} 30... Nxe5
{[%clk 0:01:16.6]} 31. dxe5 {[%clk 0:01:34.4]} 31... Qc5+ {[%clk 0:01:16.9]} 32.
Kh1 {[%clk 0:01:30.2]} 32... Qc4 {[%clk 0:01:17]} 33. Rc1 {[%clk 0:01:23.5]}
33... Qxh4 {[%clk 0:01:03.2]} 34. Rc8+ {[%clk 0:01:19.4]} 34... Kf7 {[%clk
0:01:03.5]} 35. e6+ {[%clk 0:01:20.8]} 35... Kg7 {[%clk 0:01:02.6]} 36. Rxg8+
{[%clk 0:01:20]} 36... Kxg8 {[%clk 0:01:03.5]} 37. Qxg6+ {[%clk 0:01:21.9]} 1-0